bitfinex-derivatives/quotes_ETHF0:USTF0_20250727
["timestamp","ask_amount","ask_price","bid_price","bid_amount"]
[1753595040603,0.52753,3789.9,3789.8,26.92185839]
[1753595040912,2.00083,3789.9,3789.8,26.92185839]
[1753595041110,6.68133,3789.9,3789.8,3.00525839]
[1753595041306,6.68133,3789.9,3789.8,26.03125839]
[1753595041507,6.68133,3789.9,3789.8,26.94295839]
[1753595041714,6.68133,3789.9,3789.8,26.94625839]
[1753595042414,5.79383,3789.9,3789.8,26.94625839]
[1753595042914,6.68133,3789.9,3789.8,26.94325839]
[1753595043609,5.79383,3789.9,3789.8,26.94325839]
[1753595044317,6.68133,3789.9,3789.8,23.21425839]
[1753595045218,6.68141,3789.3,3789.2,1.99537331]
[1753595045418,6.68141,3789.3,3789.2,25.91587331]
[1753595045817,6.68141,3789.3,3789.2,26.80737331]
[1753595047017,6.68141,3789.3,3789.2,23.91897331]
[1753595047218,6.68141,3789.3,3789.2,24.51577331]
[1753595047621,6.68141,3789.3,3789.2,25.89587331]
[1753595047821,6.68141,3789.3,3789.2,26.80237331]
[1753595048016,6.68141,3789.3,3789.2,25.42227331]
[1753595048216,6.68141,3789.3,3789.2,2.41327331]
[1753595048418,6.68141,3789.3,3789.2,24.51377331]
[1753595048720,6.68141,3789.3,3789.2,0.01847331]
[1753595048920,6.68141,3789.3,3789.2,23.02347331]
[1753595049114,6.68141,3789.3,3789.2,0.01847331]
[1753595049317,6.68141,3789.3,3789.2,23.02347331]
[1753595050219,6.68141,3789.3,3789.2,24.51177331]
[1753595050417,6.68141,3789.3,3789.2,2.88687331]
[1753595050622,6.68141,3789.3,3789.2,25.89087331]
[1753595052025,6.68141,3789.3,3789.2,25.88887331]
[1753595052220,6.68141,3789.3,3788.4,38.16199535]
[1753595052221,3.329,3788.5,3788.4,0.16899535]
[1753595052414,1.4733,3788.5,3788.4,26.99849535]
[1753595052615,4.44247,3788.9,3788.8,2.4514]
[1753595052814,5.79397,3788.9,3788.8,26.8275]
[1753595053025,6.68147,3788.9,3788.8,3.8315]
[1753595053424,6.68147,3788.9,3788.8,26.8265]
[1753595053624,6.68147,3788.9,3788.8,26.8255]
[1753595055522,3.85887,3788.9,3788.8,26.8255]
[1753595055729,1.4733,3789.2,3788.8,26.8255]
[1753595056023,2.9816,3789.4,3789.3,3.8315]
[1753595056225,5.7939,3789.4,3789.3,26.8205]
[1753595056423,6.6814,3789.4,3789.3,26.8205]
[1753595058016,1.11124,3789.1,3789.0,2.2716]
[1753595058221,6.68144,3789.1,3789.0,26.7639]
[1753595058729,6.68144,3789.1,3789.0,26.8205]
[1753595059034,5.79394,3789.1,3789.0,26.8205]
[1753595059222,5.79394,3789.1,3789.0,3.8315]
[1753595059526,5.79394,3789.1,3789.0,26.8135]
[1753595061019,6.68144,3789.1,3789.0,26.7917]
[1753595061221,6.68144,3789.1,3789.0,26.8135]
[1753595061425,6.68144,3789.1,3789.0,26.7837]
[1753595061628,6.68144,3789.1,3789.0,26.7489]
[1753595063023,6.68144,3789.1,3789.0,26.8055]
[1753595063222,5.79394,3789.1,3789.0,26.8055]
[1753595063724,5.79394,3789.1,3789.0,3.8315]
[1753595063923,6.68144,3789.1,3789.0,26.8025]
[1753595064124,0.52764,3789.1,3789.0,26.7985]
[1753595064324,2.00094,3789.1,3789.0,26.7985]
[1753595064520,5.79394,3789.1,3789.0,26.7985]
[1753595065832,6.68144,3789.1,3789.0,2.8684]
[1753595066034,6.68144,3789.1,3789.0,25.8354]
[1753595066236,6.68144,3789.1,3789.0,2.8684]
[1753595066534,6.68144,3789.1,3789.0,26.7359]
[1753595067334,6.68144,3789.1,3789.0,26.7577]
[1753595067730,6.68144,3789.1,3789.0,26.7925]
[1753595068430,0.52764,3789.1,3789.0,26.7925]
[1753595068634,0.50594,3789.1,3789.0,26.7925]
[1753595068943,2.74841,3789.7,3789.0,26.7925]
[1753595068944,0.52763,3789.2,3789.1,3.6935]
[1753595069235,0.52763,3789.2,3789.1,26.6465]
[1753595070735,0.52762,3789.3,3789.2,3.6935]
[1753595071539,1.4295,3789.5,3789.2,1.5037]
[1753595071838,0.5276,3789.4,3789.3,26.6395]
[1753595073333,0.52759,3789.5,3789.3,24.4497]
[1753595073534,0.52759,3789.5,3789.4,3.6935]
[1753595073834,1.95709,3789.5,3789.4,3.6935]
[1753595074727,2.90419,3789.5,3789.4,3.6935]
[1753595074938,2.90419,3789.5,3789.4,26.6325]
[1753595075636,5.71559,3789.5,3789.4,26.6275]
[1753595075843,6.57279,3789.5,3789.4,26.6275]
[1753595077147,6.57279,3789.5,3789.4,3.6935]
[1753595077438,6.57279,3789.5,3789.4,26.6255]
[1753595077637,5.188,3790.1,3790.0,3.6935]
[1753595077841,7.4327143,3790.1,3790.0,26.6185]
[1753595078143,2.4645,3789.5,3789.4,2.7772]
[1753595078337,2.99213,3789.2,3789.1,3.2078]
[1753595078641,6.57283,3789.2,3789.1,26.1308]
[1753595078830,6.57283,3789.2,3789.1,27.662]
[1753595079035,6.57283,3789.2,3789.1,29.8243]
[1753595079337,0.52763,3789.2,3789.1,29.8243]
[1753595080030,0.52763,3789.2,3789.1,30.35194]
[1753595080342,0.52763,3789.2,3789.1,29.8243]
[1753595081438,6.57283,3789.2,3789.1,6.9013]
[1753595081635,6.57283,3789.2,3789.1,29.8183]
[1753595081834,6.57283,3789.2,3789.1,26.1248]
[1753595082036,2.99217,3788.9,3788.8,2.42]
[1753595082237,6.57287,3788.9,3788.8,25.333]
[1753595082429,6.57287,3788.9,3788.8,2.42]
[1753595082831,6.57287,3788.9,3788.8,25.33]
[1753595083143,6.57292,3788.5,3788.4,0.78389535]
[1753595083441,6.57292,3788.5,3788.4,24.60919535]
[1753595084035,6.57292,3788.5,3788.4,26.77149535]
[1753595084238,4.42172,3788.5,3788.4,26.77149535]
[1753595084442,1.95722,3788.5,3788.4,26.77149535]
[1753595084641,1.95722,3788.5,3788.4,3.86249535]
[1753595084842,1.95722,3788.5,3788.4,26.76949535]
[1753595085144,1.95722,3788.5,3788.4,26.76649535]
[1753595085840,0.52772,3788.5,3788.4,26.76649535]
[1753595086040,0.52771,3788.7,3788.4,26.76649535]
[1753595086348,5.71571,3788.7,3788.6,3.6935]
[1753595086547,5.71571,3788.7,3788.6,26.5935]
[1753595087838,6.57291,3788.7,3788.6,1.5312]
[1753595088147,6.57291,3788.7,3788.6,24.4322]
[1753595088946,6.57291,3788.7,3788.6,27.12221]
[1753595089347,6.57291,3788.7,3788.6,26.5945]
[1753595089544,5.71571,3788.7,3788.6,26.5945]
[1753595089743,6.57291,3788.7,3788.6,26.5945]
[1753595090944,6.57291,3788.7,3788.6,25.321]
[1753595091144,6.57291,3788.7,3788.6,26.5945]
[1753595092150,6.57291,3788.7,3788.6,26.5775]
[1753595092343,6.57291,3788.7,3788.6,26.5765]
[1753595093045,6.57291,3788.7,3788.6,23.7983]
[1753595093743,6.57291,3788.7,3788.6,24.4132]
[1753595094350,6.57291,3788.7,3788.4,0.16899535]
[1753595094351,5.71572,3788.5,3788.4,5.35e-06]
[1753595094545,6.57292,3788.5,3788.4,26.56950535]
[1753595094745,5.71572,3788.5,3788.4,26.56950535]
[1753595095548,0.52772,3788.5,3788.4,26.56950535]
[1753595098655,0.52772,3788.6,3788.5,3.6998]
[1753595098848,0.52772,3788.6,3788.5,4.22752]
[1753595099042,0.52772,3788.6,3788.5,3.6998]
[1753595099248,2.94272,3788.6,3788.5,3.6998]
[1753595099448,5.68182,3788.6,3788.5,3.6998]
[1753595099652,6.52712,3788.6,3788.5,26.5628]
[1753595099853,5.68182,3788.6,3788.5,26.5628]
[1753595100555,3.8432,3788.6,3788.5,27.09052]
[1753595100756,2.415,3788.6,3788.5,27.09052]
[1753595100955,2.94271,3788.6,3788.5,26.5628]
[1753595101460,2.94271,3788.6,3788.5,27.09052]
[1753595101850,2.415,3788.6,3788.5,27.09052]
[1753595102159,2.94271,3788.6,3788.5,27.09052]
[1753595102459,2.415,3788.6,3788.5,27.09052]
[1753595103861,2.94271,3788.6,3788.5,27.09052]
[1753595104060,4.25361,3788.6,3788.5,27.09052]
[1753595104361,5.11111,3788.6,3788.5,27.09052]
[1753595104660,4.5834,3788.6,3788.5,27.09052]
[1753595104958,5.11111,3788.6,3788.5,4.22752]
[1753595105160,5.1541,3788.6,3788.5,27.07652]
[1753595105359,5.68181,3788.6,3788.5,27.07652]
[1753595105559,5.68181,3788.6,3788.5,26.5488]
[1753595105766,6.52711,3788.6,3788.5,26.5488]
[1753595105966,6.52711,3788.6,3788.5,3.6998]
[1753595106160,6.52303054,3788.6,3788.5,2.368]
[1753595106369,6.52303054,3788.6,3788.5,25.207]
[1753595106559,6.52303054,3788.6,3788.5,26.5388]
[1753595107168,6.52303054,3788.6,3788.5,25.207]
[1753595107570,6.52303054,3788.6,3788.5,22.839]
[1753595107768,2.68392,3788.5,3788.4,5.35e-06]
[1753595108069,2.93822,3788.5,3788.4,22.83400535]
[1753595108269,4.37092,3788.5,3788.4,22.83400535]
[1753595108458,6.52712,3788.5,3788.4,22.83400535]
[1753595108766,2.93822,3788.5,3788.4,5.35e-06]
[1753595109069,2.93822,3788.5,3788.4,22.83000535]
[1753595109764,2.93822,3788.5,3788.4,22.82800535]
[1753595109965,5.09442,3788.5,3788.4,22.82800535]
[1753595110270,7.38317475,3788.5,3788.4,22.82800535]
[1753595111267,6.52712,3788.5,3788.4,26.53820535]
[1753595111563,3.79475301,3788.5,3788.4,5.35e-06]
[1753595111767,3.79475301,3788.5,3788.4,22.82200535]
[1753595112165,7.38365301,3788.5,3788.4,22.82200535]
[1753595113064,7.38365301,3788.5,3788.4,22.81800535]
[1753595113363,7.38365301,3788.5,3788.4,5.35e-06]
[1753595113572,3.79475301,3788.5,3788.4,22.81600535]
[1753595114165,7.38365301,3788.5,3788.4,22.81600535]
[1753595115173,7.38365301,3788.5,3788.4,5.35e-06]
[1753595115375,3.79475301,3788.5,3788.4,22.81300535]
[1753595115876,7.38365301,3788.5,3788.4,22.81300535]
[1753595116169,3.79475301,3788.5,3788.4,5.35e-06]
[1753595116373,3.79475301,3788.5,3788.4,22.81100535]
[1753595116772,5.95095301,3788.5,3788.4,22.81100535]
[1753595116970,7.38365301,3788.5,3788.4,22.81100535]
[1753595118476,7.38365301,3788.5,3788.4,26.52120535]
[1753595119072,7.38365301,3788.5,3788.4,26.51720535]
[1753595119576,7.38365301,3788.5,3788.4,26.51080535]
[1753595122176,3.79925301,3788.5,3788.4,26.52120535]
[1753595122574,0.52772,3788.5,3788.4,26.52120535]
[1753595124271,0.52772,3788.6,3788.5,3.7102]
[1753595125068,1.38487212,3788.6,3788.5,3.7102]
[1753595126173,2.94272,3788.6,3788.5,3.7102]
[1753595126379,2.94272,3788.6,3788.5,2.368]
[1753595126380,6.52712,3788.6,3788.5,2.368]
[1753595126574,6.52712,3788.6,3788.5,23.3842]
[1753595126780,6.52712,3788.6,3788.5,0.6042]
[1753595127085,0.52772,3788.5,3788.4,5.35e-06]
[1753595127377,2.93822,3788.5,3788.4,22.77300535]
[1753595127681,6.68792,3788.5,3788.4,22.77300535]
[1753595127982,2.93822,3788.5,3788.4,5.35e-06]
[1753595128183,2.93822,3788.5,3788.4,24.25440535]
[1753595128684,6.68792,3788.5,3788.4,24.25440535]
[1753595129180,6.68792,3788.5,3788.4,25.52550535]
[1753595129485,6.68792,3788.5,3788.4,26.45530535]
[1753595130081,5.76312,3788.5,3788.4,26.45530535]
[1753595133388,6.68792,3788.5,3788.4,26.45530535]
[1753595137194,6.68792,3788.5,3788.4,1.48340535]
[1753595137592,6.68792,3788.5,3788.4,24.21940535]
[1753595137893,6.68792,3788.5,3788.4,25.49050535]
[1753595138095,6.68792,3788.5,3788.4,22.73600535]
[1753595138688,6.68792,3788.5,3788.4,24.21940535]
[1753595138889,7.54523743,3788.5,3788.4,24.21940535]
[1753595139090,7.54523743,3788.5,3788.4,1.48340535]
[1753595139391,7.54523743,3788.5,3788.4,24.21640535]
[1753595141396,7.54523743,3788.5,3788.4,26.42410535]
[1753595141585,7.54523743,3788.5,3788.4,26.42830535]
[1753595143398,7.54523743,3788.5,3788.4,3.69530535]
[1753595143696,7.54523743,3788.5,3788.4,26.41030535]
[1753595145500,7.54439666,3788.5,3788.4,26.41030535]
[1753595146199,2.84769666,3788.5,3788.4,26.41030535]
[1753595146499,7.56249666,3788.5,3788.4,26.41030535]
[1753595148801,7.56249666,3788.5,3788.4,26.39930535]
[1753595149300,7.56249666,3788.5,3788.4,26.40350535]
[1753595149503,7.56249666,3788.5,3788.4,26.38650535]
[1753595149703,7.56249666,3788.5,3788.4,26.38230535]
[1753595150998,7.56249666,3788.5,3788.4,3.68430535]
[1753595151301,7.56249666,3788.5,3788.4,26.37230535]
[1753595152201,7.56249666,3788.5,3788.4,3.68430535]
[1753595152402,7.56249666,3788.5,3788.4,26.37230535]
[1753595152706,7.56249666,3788.5,3788.4,25.09620535]
[1753595153403,7.56249666,3788.5,3788.4,26.36730535]
[1753595156504,7.56249666,3788.5,3788.4,3.68430535]
[1753595156705,7.56249666,3788.5,3788.4,26.35130535]
[1753595157505,7.52279666,3788.5,3788.4,22.66800535]
[1753595158206,3.81279666,3788.5,3788.4,22.66400535]
[1753595159110,7.52279666,3788.5,3788.4,22.66400535]
[1753595159801,7.52279666,3788.5,3788.4,5.35e-06]
[1753595160007,3.81279666,3788.5,3788.4,5.35e-06]
[1753595162106,2.01069,3787.3,3787.2,2.8258]
[1753595162309,6.72609,3787.3,3787.2,2.8215]
[1753595162909,7.58220346,3787.3,3787.2,2.8215]
[1753595164108,7.58183572,3787.3,3787.2,26.3891]
[1753595164715,7.58183572,3787.3,3787.2,3.7592]
[1753595166512,6.72609,3787.3,3787.2,3.7481]
[1753595166718,7.58125357,3787.3,3787.2,1.9644]
[1753595166918,7.58125357,3787.3,3787.2,0.5794]
[1753595167308,7.58125357,3787.3,3787.1,3.2078]
[1753595167309,5.7207,3787.2,3787.1,3.2078]
[1753595167518,7.58126357,3787.2,3787.1,3.2078]
[1753595167819,6.72615,3786.9,3786.8,26.3781]
[1753595168117,7.58131357,3786.9,3786.8,1.4365]
[1753595168412,6.72619,3786.6,3786.5,29.593]
[1753595170519,6.72619,3786.6,3786.5,3.2078]
[1753595170725,6.72619,3786.6,3786.5,5.1722]
[1753595170924,6.72619,3786.6,3786.5,6.0988]
[1753595171119,6.72619,3786.6,3786.5,3.51387]
[1753595171325,3.01629,3785.9,3785.8,3.95466469]
[1753595171517,3.2078,3785.9,3785.8,3.95466469]
[1753595171723,3.88589,3786.6,3786.5,1.6809]
[1753595171919,1.38112169,3786.6,3786.5,1.6809]
[1753595172115,0.52798,3786.7,3786.5,24.2959]
[1753595172326,3.2078,3786.8,3786.7,0.687]
[1753595172519,1.4445,3787.2,3786.7,4.8887]
[1753595172724,0.52795,3786.9,3786.8,24.2949]
[1753595172915,0.52794,3787.0,3786.9,0.9896]
[1753595173116,0.52794,3787.0,3786.9,1.6809]
[1753595173819,0.52792,3787.1,3787.0,1.6809]
[1753595174025,0.52789,3787.3,3787.0,0.687]
[1753595174219,0.52789,3787.3,3787.2,1.6809]
[1753595174625,1.97239,3787.3,3787.2,1.6809]
[1753595175325,5.82459,3787.3,3787.2,1.6809]
[1753595175526,6.72609,3787.3,3787.2,1.6809]
[1753595176223,5.82459,3787.3,3787.2,1.6809]
[1753595176523,1.97239,3787.3,3787.2,1.6809]
[1753595177122,6.72609,3787.3,3787.2,1.6809]
[1753595177323,6.72609,3787.3,3787.2,1.569]
[1753595177723,6.72609,3787.3,3787.2,1.6809]
[1753595178624,6.72606,3787.5,3787.4,1.569]
[1753595179127,3.71,3787.2,3787.1,0.5794]
[1753595179326,6.7261,3787.2,3787.1,24.1]
[1753595179528,9.9339,3787.2,3787.1,24.163]
[1753595180224,3.88599,3785.9,3785.8,1.87636469]
[1753595180431,0.52806,3786.1,3786.0,0.687]
[1753595180729,0.52806,3786.1,3786.0,24.2679]
[1753595181524,0.52806,3786.1,3786.0,1.6809]
[1753595181726,0.52806,3786.1,3786.0,24.2649]
[1753595184224,0.52805,3786.2,3786.1,1.6136]
[1753595184428,0.52805,3786.2,3786.1,1.6809]
[1753595184628,0.52805,3786.2,3786.1,6.6809]
[1753595184830,0.52804,3786.3,3786.1,7.20896]
[1753595185026,0.52804,3786.3,3786.2,2.20894]
[1753595185422,0.52804,3786.3,3786.2,7.20894]
[1753595186025,0.52804,3786.3,3786.2,6.6809]
[1753595186728,1.4445,3786.8,3786.2,6.21504]
[1753595187030,6.72616,3786.8,3786.7,1.6809]
[1753595187333,6.72616,3786.8,3786.7,24.2519]
[1753595187533,6.72616,3786.8,3786.7,24.2551]
[1753595192833,6.72616,3786.8,3786.7,24.78307]
[1753595193038,0.52796,3786.8,3786.7,24.2551]
[1753595193638,0.52796,3786.8,3786.7,24.78307]
[1753595194037,0.52796,3786.8,3786.7,24.2551]
[1753595195141,1.98076,3786.8,3786.7,24.2551]
[1753595196338,0.52796,3786.8,3786.7,24.78307]
[1753595197137,0.52793,3787.0,3786.9,0.7099]
[1753595197332,0.52793,3787.0,3786.9,24.1684]
[1753595197538,0.52793,3787.0,3786.9,24.69635]
[1753595197738,0.52793,3787.1,3787.0,0.52792]
[1753595197933,0.52791,3787.2,3787.1,2.15531]
[1753595198142,0.52789,3787.3,3787.2,1.2378]
[1753595198343,3.26019,3787.3,3787.2,24.6913]
[1753595198942,1.98069,3787.3,3787.2,24.6913]
[1753595199138,1.4528,3787.3,3787.2,24.6913]
[1753595199332,0.52784,3787.7,3787.5,1.6274]
[1753595199643,0.52785,3787.6,3787.5,1.6274]
[1753595199942,4.33064,3787.7,3787.6,2.15525]
[1753595200139,5.22994,3787.7,3787.6,24.1584]
[1753595200332,5.22994,3787.7,3787.6,24.68625]
[1753595200632,6.68274,3787.7,3787.6,24.1584]
[1753595201245,6.68274,3787.7,3787.6,1.6274]
[1753595201541,6.68274,3787.7,3787.6,24.1554]
[1753595201943,6.68274,3787.7,3787.6,24.68325]
[1753595202139,1.4528,3787.8,3787.7,0.7099]
[1753595202443,1.4528,3787.8,3787.7,2.15523]
[1753595203940,1.2795,3788.0,3787.7,2.15523]
[1753595203941,2.7323,3788.0,3787.7,2.15523]
[1753595204241,1.4528,3787.9,3787.8,24.67622]
[1753595204438,1.4528,3788.0,3787.9,1.6274]
[1753595204640,6.68261,3788.6,3788.5,1.5587]
[1753595204842,6.68261,3788.6,3788.5,23.111]
[1753595205243,6.68261,3788.6,3788.5,22.513]
[1753595206546,2.5233,3788.1,3788.0,0.6667]
[1753595206740,6.1549,3788.1,3788.0,24.0265]
[1753595206941,6.68268,3788.1,3788.0,23.103]
[1753595207749,1.4528,3788.1,3788.0,24.65029]
[1753595208048,1.4528,3788.1,3788.0,24.1225]
[1753595208049,0.52778,3788.1,3788.0,24.1225]
[1753595208243,0.52778,3788.1,3788.0,24.65029]
[1753595208444,3.73557,3788.2,3788.1,1.23158]
[1753595208648,3.73557,3788.2,3788.1,1.6175]
[1753595208846,5.18837,3788.2,3788.1,1.6175]
[1753595209349,5.18837,3788.2,3788.1,2.14528]
[1753595210148,5.18837,3788.2,3788.1,1.6175]
[1753595210348,1.98057,3788.2,3788.1,1.6175]
[1753595211149,1.98057,3788.2,3788.1,2.14528]
[1753595211350,4.15935,3788.4,3788.3,0.7038]
[1753595211552,4.15935,3788.4,3788.3,24.1085]
[1753595212240,2.7323,3788.4,3788.3,24.63625]
[1753595212443,1.4528,3788.4,3788.3,24.63625]
[1753595213346,4.52695,3789.0,3788.3,24.63625]
[1753595213347,3.58478,3788.9,3788.8,1.4456]
[1753595213544,5.22978,3788.9,3788.8,24.0985]
[1753595213946,6.68258,3788.9,3788.8,24.0985]
[1753595214856,6.06418,3788.9,3788.8,24.0985]
[1753595215053,3.25998,3788.9,3788.8,24.0985]
[1753595215253,6.68258,3788.9,3788.8,24.0985]
[1753595215556,6.68258,3788.9,3788.8,24.62618]
[1753595215747,6.68258,3788.9,3788.8,24.0985]
[1753595216148,6.68258,3788.9,3788.8,24.62618]
[1753595216550,5.16488,3788.9,3788.8,24.62618]
[1753595216851,5.16488,3788.9,3788.8,24.0985]
[1753595216852,6.68258,3788.9,3788.8,24.0985]
[1753595217048,0.5277,3788.7,3788.6,0.5277]
[1753595217250,0.5277,3788.7,3788.6,23.066]
[1753595217251,6.6826,3788.7,3788.6,23.066]
[1753595217448,0.52772,3788.5,3788.4,0.52773]
[1753595217747,6.75112,3788.5,3788.4,23.0456]
[1753595217949,6.75112,3788.5,3788.4,23.972]
[1753595218144,6.2234,3788.2,3788.1,39.53488]
[1753595218351,6.2234,3788.2,3788.1,61.99788]
[1753595221752,2.03559,3788.8,3788.2,2.00572]
[1753595222056,6.75108,3788.8,3788.7,1.507]
[1753595222256,6.75108,3788.8,3788.7,23.958]
[1753595222646,1.5079,3789.6,3789.2,1.6804]
[1753595222957,0.52765,3789.1,3788.7,3.2078]
[1753595223154,3.3887,3789.0,3788.9,0.5796]
[1753595223357,3.3887,3789.0,3788.1,38.013]
[1753595223358,2.4865,3789.0,3788.5,0.52771]
[1753595223552,3.01422,3788.5,3788.4,0.5796]
[1753595223747,2.4865,3788.5,3788.4,0.5796]
[1753595224059,6.2234,3788.5,3788.4,24.65214]
[1753595225653,6.75112,3788.5,3788.4,23.1303]
[1753595225853,3.01424,3788.4,3788.3,3.2078]
[1753595226054,6.75114,3788.4,3788.3,25.6508]
[1753595226455,6.2234,3788.4,3788.3,25.6508]
[1753595226749,6.75114,3788.4,3788.3,25.6508]
[1753595226954,3.01427,3788.2,3788.1,38.013]
[1753595227155,6.75117,3788.2,3788.1,60.451]
[1753595227459,2.02168,3787.4,3787.3,3.2078]
[1753595227657,6.75128,3787.4,3787.3,3.2078]
[1753595227862,6.75128,3787.4,3787.3,25.6408]
[1753595228265,6.2234,3787.4,3787.3,25.6408]
[1753595228462,6.2234,3787.4,3787.3,26.74829]
[1753595228657,4.8966,3787.8,3787.7,2.20824]
[1753595228857,4.8966,3787.8,3787.7,27.84604]
[1753595229053,6.2234,3787.8,3787.7,23.1163]
[1753595229259,6.75122,3787.8,3787.7,22.43]
[1753595229461,6.2234,3787.8,3787.7,22.43]
[1753595229759,6.75122,3787.8,3787.7,22.43]
[1753595231661,0.6237,3787.4,3787.3,0.52788]
[1753595231864,6.2234,3787.4,3787.3,22.94988]
[1753595232363,6.2234,3787.4,3787.3,23.52948]
[1753595236057,4.3606,3787.5,3787.4,2.10157]
[1753595236262,6.2234,3787.5,3787.4,2.20827]
[1753595238564,4.8966,3787.5,3787.4,1.10747]
[1753595238760,6.75126,3787.5,3787.4,0.5796]
[1753595239264,2.14428,3787.4,3787.3,22.94989]
[1753595239470,6.75128,3787.4,3787.3,22.94989]
[1753595239763,6.75128,3787.4,3787.3,23.52949]
[1753595240168,6.75128,3787.4,3787.3,23.0016]
[1753595240669,6.75128,3787.4,3787.3,23.52949]
[1753595241568,6.2234,3787.4,3787.3,23.52949]
[1753595242567,6.2234,3787.4,3787.3,23.63619]
[1753595242962,6.75128,3787.4,3787.3,23.1083]
[1753595243162,6.75128,3787.4,3787.3,23.0016]
[1753595243571,6.75128,3787.4,3787.3,22.422]
[1753595243872,6.75129,3787.3,3787.2,3.7874]
[1753595244071,6.75129,3787.3,3787.2,26.1774]
[1753595244473,6.75129,3787.3,3787.2,26.7053]
[1753595244668,6.75129,3787.3,3787.2,26.1774]
[1753595245972,6.75129,3787.3,3787.2,26.7053]
[1753595246475,6.75129,3787.3,3787.2,27.8061]
[1753595246973,6.75129,3787.3,3787.2,27.2782]
[1753595247173,6.75129,3787.3,3787.2,26.2841]
[1753595248274,6.75129,3787.3,3787.2,27.2402]
[1753595249076,6.75129,3787.3,3787.2,27.7681]
[1753595249978,6.75129,3787.3,3787.2,25.5978]
[1753595250179,6.75129,3787.3,3787.2,22.39]
[1753595250383,6.75129,3787.3,3787.2,22.9807]
[1753595251374,6.75129,3787.3,3787.2,0.5907]
[1753595251576,6.75129,3787.3,3787.2,22.9617]
[1753595254883,6.75129,3787.3,3787.2,22.371]
[1753595255984,6.75129,3787.3,3787.2,22.9617]
[1753595256280,6.75129,3787.3,3787.2,23.1385]
[1753595256484,6.75129,3787.3,3787.2,24.0266]
[1753595256680,6.75129,3787.3,3787.2,23.0705]
[1753595256879,6.75129,3787.3,3787.2,22.9617]
[1753595257377,2.95103,3787.0,3786.9,38.009]
[1753595257578,6.63743,3787.0,3786.9,60.36]
[1753595258273,6.63743,3787.0,3786.9,60.428]
[1753595259381,4.0468,3787.5,3787.4,0.6995]
[1753595259679,9.21224926,3787.5,3787.4,22.9387]
[1753595259885,9.21224926,3787.5,3787.4,22.348]
[1753595260088,10.70024926,3787.5,3787.4,22.348]
[1753595262787,10.70024926,3787.5,3787.4,21.68117]
[1753595263282,6.63743,3787.0,3786.9,38.009]
[1753595263488,6.63743,3787.0,3786.9,60.341]
[1753595264380,6.63743,3787.0,3786.9,61.2971]
[1753595267994,6.63743,3787.0,3786.9,60.341]
[1753595268496,6.63743,3787.0,3786.9,61.2971]
[1753595269487,6.63743,3787.0,3786.9,23.9876]
[1753595271581,0.52793,3787.0,3786.9,23.9876]
[1753595272887,3.2078,3787.5,3786.9,23.0315]
[1753595273086,4.34895,3787.6,3787.5,0.6995]
[1753595273390,5.66075,3787.6,3787.5,23.9576]
[1753595273583,6.63735,3787.6,3787.5,23.9576]
[1753595274086,7.49249864,3787.6,3787.5,23.9576]
[1753595275393,6.63735,3787.6,3787.5,23.9576]
[1753595277387,6.63735,3787.6,3787.5,23.0695]
[1753595277796,7.49292601,3787.6,3787.5,22.8927]
[1753595278388,7.49292601,3787.6,3787.5,22.302]
[1753595279497,7.49292601,3787.6,3787.5,22.8802]
[1753595280396,1.38342601,3787.6,3787.5,23.9064]
[1753595280586,2.84375,3787.6,3787.5,23.9064]
[1753595280990,1.4541,3787.6,3787.5,23.9064]
[1753595281192,6.2714,3787.9,3787.5,22.9917]
[1753595281392,0.52784,3787.7,3787.6,1.5347]
[1753595282094,0.52783,3787.8,3787.7,2.13223]
[1753595282395,0.52783,3787.8,3787.7,23.8794]
[1753595282790,2.84373,3787.8,3787.7,23.8794]
[1753595283197,3.70903,3787.8,3787.7,23.8794]
[1753595283395,6.63393,3787.8,3787.7,23.8794]
[1753595283986,1.39316,3787.5,3787.4,0.9147]
[1753595284193,6.63396,3787.5,3787.4,22.8462]
[1753595284995,6.63396,3787.5,3787.4,23.8724]
[1753595285186,6.63396,3787.5,3787.4,22.9577]
[1753595285691,6.634,3787.2,3787.1,0.5782]
[1753595285898,6.634,3787.2,3787.1,22.8432]
[1753595286196,6.634,3787.2,3787.1,23.8694]
[1753595286593,0.528,3786.5,3786.3,3.2078]
[1753595286791,2.84737,3786.7,3786.6,0.6897]
[1753595286995,1.98207,3786.7,3786.6,0.6897]
[1753595287197,2.84387,3786.7,3786.6,1.3954]
[1753595287398,2.84387,3786.7,3786.6,23.6524]
[1753595289800,2.84387,3786.7,3786.6,24.18039]
[1753595290393,0.8618,3786.7,3786.6,24.18039]
[1753595290590,0.52797,3786.8,3786.7,1.21767]
[1753595290802,1.38977,3786.8,3786.7,1.92337]
[1753595290999,2.84387,3786.8,3786.7,5.13117]
[1753595291598,2.84387,3786.8,3786.7,4.6032]
[1753595291798,4.78197,3786.8,3786.7,4.6032]
[1753595292000,5.64727,3786.8,3786.7,5.13117]
[1753595293804,2.3159,3786.8,3786.7,5.13117]
[1753595294302,6.63406,3786.8,3786.7,4.49517]
[1753595295402,6.63406,3786.8,3786.7,3.8975]
[1753595295803,6.63406,3786.8,3786.7,0.6897]
[1753595296004,6.63407,3786.7,3786.6,22.257]
[1753595299904,1.38977,3786.7,3786.6,23.6524]
[1753595300109,6.63407,3786.7,3786.6,22.9467]
[1753595300402,9.84187,3786.7,3786.6,22.257]
[1753595300608,6.63407,3786.7,3786.6,22.257]
[1753595301006,6.63407,3786.7,3786.6,23.6524]
[1753595301806,6.63407,3786.7,3786.6,23.0164]
[1753595302204,2.4537,3785.1,3785.0,1.0777]
[1753595302506,1.3365,3785.4,3785.0,5.6477]